[Event "Early-Titled-Tuesday-Blitz-March-05-2024"]
[Site "Chess.com"]
[Date "2024.03.05"]
[Round "6"]
[White "ChessLover0108"]
[Black "CarlosjPineror"]
[Result "0-1"]
[WhiteElo "2944"]
[BlackElo "2735"]
[TimeControl "180+1"]
[EndTime "9:09:58 PST"]
[Termination "CarlosjPineror won on time"]

1. c4 {[%clk 0:02:58.4]} 1... c5 {[%clk 0:02:59.4]} 2. Nf3 {[%clk 0:02:57]} 2...
Nf6 {[%clk 0:03:00.1]} 3. Nc3 {[%clk 0:02:57.4]} 3... e6 {[%clk 0:03:00.5]} 4.
g3 {[%clk 0:02:57.1]} 4... Be7 {[%clk 0:02:59.8]} 5. Bg2 {[%clk 0:02:57.2]} 5...
O-O {[%clk 0:03:00.5]} 6. d4 {[%clk 0:02:57.9]} 6... cxd4 {[%clk 0:03:00.6]} 7.
Nxd4 {[%clk 0:02:58.8]} 7... a6 {[%clk 0:03:01.3]} 8. O-O {[%clk 0:02:59]} 8...
Nc6 {[%clk 0:03:02]} 9. b3 {[%clk 0:02:58.6]} 9... Qc7 {[%clk 0:03:02]} 10. Bb2
{[%clk 0:02:57.4]} 10... d6 {[%clk 0:03:02.6]} 11. Rc1 {[%clk 0:02:56.7]} 11...
Ne5 {[%clk 0:03:03.3]} 12. e4 {[%clk 0:02:47.3]} 12... Bd7 {[%clk 0:03:03]} 13.
f4 {[%clk 0:02:45.4]} 13... Ng6 {[%clk 0:03:02.9]} 14. h3 {[%clk 0:02:44.1]}
14... Rac8 {[%clk 0:02:53.6]} 15. Kh2 {[%clk 0:02:44.1]} 15... Qb8 {[%clk
0:02:53]} 16. Qe2 {[%clk 0:02:40.9]} 16... h5 {[%clk 0:02:37.3]} 17. h4 {[%clk
0:02:21.2]} 17... Ng4+ {[%clk 0:02:25.8]} 18. Kh1 {[%clk 0:02:19.7]} 18... Bf6
{[%clk 0:02:05.8]} 19. Rcd1 {[%clk 0:02:17.9]} 19... Qa7 {[%clk 0:01:48.8]} 20.
Nb1 {[%clk 0:01:53.7]} 20... e5 {[%clk 0:01:37.2]} 21. Nf5 {[%clk 0:01:49.7]}
21... Bxf5 {[%clk 0:01:36.2]} 22. exf5 {[%clk 0:01:50.6]} 22... Ne7 {[%clk
0:01:35.9]} 23. fxe5 {[%clk 0:01:26.4]} 23... dxe5 {[%clk 0:01:36.8]} 24. Nc3
{[%clk 0:01:08.3]} 24... Rcd8 {[%clk 0:01:27.5]} 25. Ne4 {[%clk 0:00:50.5]}
25... Qe3 {[%clk 0:01:20]} 26. Rde1 {[%clk 0:00:38.8]} 26... Qxe2 {[%clk
0:01:05.8]} 27. Rxe2 {[%clk 0:00:39.7]} 27... Rd3 {[%clk 0:01:04.5]} 28. Bc1
{[%clk 0:00:31.5]} 28... Rfd8 {[%clk 0:01:02.4]} 29. Bd2 {[%clk 0:00:07.5]}
29... Nc6 {[%clk 0:01:02.1]} 30. Bg5 {[%clk 0:00:04.7]} 30... Nd4 {[%clk
0:00:57.9]} 31. Rd2 {[%clk 0:00:04.1]} 31... Rxd2 {[%clk 0:00:52.9]} 32. Bxd2
{[%clk 0:00:05]} 32... b6 {[%clk 0:00:46.2]} 33. Bg5 {[%clk 0:00:02.8]} 33...
Nc2 {[%clk 0:00:39]} 34. Bh3 {[%clk 0:00:02.5]} 34... Bxg5 {[%clk 0:00:33.4]}
35. hxg5 {[%clk 0:00:03.4]} 35... Nce3 {[%clk 0:00:32.6]} 36. Re1 {[%clk
0:00:02.2]} 36... Rd4 {[%clk 0:00:32]} 37. Bxg4 {[%clk 0:00:02.1]} 37... Nxg4
{[%clk 0:00:30.3]} 38. Kg2 {[%clk 0:00:02.7]} 38... Rd3 {[%clk 0:00:17]} 39. f6
{[%clk 0:00:02.9]} 39... gxf6 {[%clk 0:00:14]} 40. Nxf6+ {[%clk 0:00:03.8]}
40... Nxf6 {[%clk 0:00:14.1]} 41. gxf6 {[%clk 0:00:04.7]} 41... Rd2+ {[%clk
0:00:12.2]} 42. Kh3 {[%clk 0:00:05.1]} 42... Rxa2 {[%clk 0:00:13.1]} 43. Rxe5
{[%clk 0:00:05]} 43... Rb2 {[%clk 0:00:13.4]} 44. Rxh5 {[%clk 0:00:01.9]} 44...
Rxb3 {[%clk 0:00:11]} 45. Rg5+ {[%clk 0:00:02.8]} 45... Kf8 {[%clk 0:00:04.8]}
46. Rd5 {[%clk 0:00:02.9]} 46... Ke8 {[%clk 0:00:04.5]} 47. Re5+ {[%clk
0:00:02.5]} 47... Kf8 {[%clk 0:00:04.3]} 48. Kh4 {[%clk 0:00:02.8]} 48... Rb4
{[%clk 0:00:03.7]} 49. g4 {[%clk 0:00:02]} 49... Rxc4 {[%clk 0:00:04.2]} 50. Rd5
{[%clk 0:00:02.9]} 50... Rc8 {[%clk 0:00:04.8]} 51. Rd6 {[%clk 0:00:02.7]} 51...
Rb8 {[%clk 0:00:05.1]} 52. g5 {[%clk 0:00:02]} 52... a5 {[%clk 0:00:05.7]} 0-1

[Event "Early-Titled-Tuesday-Blitz-March-05-2024"]
[Site "Chess.com"]
[Date "2024.03.05"]
[Round "6"]
[White "FMStan15"]
[Black "IngOscarArdila"]
[Result "1/2-1/2"]
[WhiteElo "2090"]
[BlackElo "2319"]
[TimeControl "180+1"]
[EndTime "9:10:06 PST"]
[Termination "Game drawn by repetition"]

1. e4 {[%clk 0:02:50.9]} 1... e5 {[%clk 0:03:00.1]} 2. Nf3 {[%clk 0:02:47.7]}
2... Nf6 {[%clk 0:03:00]} 3. d4 {[%clk 0:02:46.1]} 3... Nxe4 {[%clk 0:02:59.9]}
4. Bd3 {[%clk 0:02:45.7]} 4... d5 {[%clk 0:02:57.2]} 5. dxe5 {[%clk 0:02:46.1]}
5... Nc5 {[%clk 0:02:56.7]} 6. Be2 {[%clk 0:02:45.5]} 6... Be7 {[%clk
0:02:56.3]} 7. O-O {[%clk 0:02:44.9]} 7... O-O {[%clk 0:02:55.7]} 8. Nbd2 {[%clk
0:02:45.2]} 8... Bf5 {[%clk 0:02:55.3]} 9. Nb3 {[%clk 0:02:45.3]} 9... c6 {[%clk
0:02:48.5]} 10. c3 {[%clk 0:02:45.3]} 10... Nbd7 {[%clk 0:02:46.4]} 11. Nbd4
{[%clk 0:02:45.5]} 11... Be6 {[%clk 0:02:39.2]} 12. Nxe6 {[%clk 0:02:43.5]}
12... fxe6 {[%clk 0:02:40.1]} 13. Re1 {[%clk 0:02:36.1]} 13... Qe8 {[%clk
0:02:38.6]} 14. Bd3 {[%clk 0:02:34.3]} 14... Nxd3 {[%clk 0:02:38.2]} 15. Qxd3
{[%clk 0:02:34]} 15... Qh5 {[%clk 0:02:35.5]} 16. Qe2 {[%clk 0:02:24.2]} 16...
Rf5 {[%clk 0:02:33.8]} 17. Bd2 {[%clk 0:02:08.6]} 17... Raf8 {[%clk 0:02:30.9]}
18. Nd4 {[%clk 0:01:59.5]} 18... Qxe2 {[%clk 0:01:34.5]} 19. Rxe2 {[%clk
0:01:54.5]} 19... Rxe5 {[%clk 0:01:34.7]} 20. Rxe5 {[%clk 0:01:48.4]} 20... Nxe5
{[%clk 0:01:34.5]} 21. Nxe6 {[%clk 0:01:48.1]} 21... Rf6 {[%clk 0:01:28.5]} 22.
Nd4 {[%clk 0:01:45.4]} 22... Bc5 {[%clk 0:01:23.1]} 23. Be3 {[%clk 0:01:27.2]}
23... Nc4 {[%clk 0:01:21.6]} 24. b3 {[%clk 0:01:26.1]} 24... Nxe3 {[%clk
0:01:16.5]} 25. fxe3 {[%clk 0:01:26.3]} 25... Kf7 {[%clk 0:01:12.3]} 26. Rf1
{[%clk 0:01:23.5]} 26... Rxf1+ {[%clk 0:01:09.2]} 27. Kxf1 {[%clk 0:01:23.3]}
27... Kf6 {[%clk 0:01:10.1]} 28. Ke2 {[%clk 0:01:21]} 28... Ke5 {[%clk
0:01:06.6]} 29. Kd3 {[%clk 0:01:20.1]} 29... Bd6 {[%clk 0:01:03]} 30. g4 {[%clk
0:01:16.8]} 30... g6 {[%clk 0:01:00.4]} 31. Nf3+ {[%clk 0:01:16.8]} 31... Kf6
{[%clk 0:01:00.3]} 32. h3 {[%clk 0:01:14.8]} 32... h5 {[%clk 0:01:00.1]} 33. e4
{[%clk 0:01:13.4]} 33... dxe4+ {[%clk 0:00:44.2]} 34. Kxe4 {[%clk 0:01:12.3]}
34... Bg3 {[%clk 0:00:39.8]} 35. c4 {[%clk 0:01:11.9]} 35... Bf2 {[%clk
0:00:35.9]} 36. a4 {[%clk 0:00:49.3]} 36... Bc5 {[%clk 0:00:35.1]} 37. gxh5
{[%clk 0:00:37.8]} 37... gxh5 {[%clk 0:00:34.4]} 38. Kf4 {[%clk 0:00:34.1]}
38... Bd6+ {[%clk 0:00:34]} 39. Ke4 {[%clk 0:00:34.2]} 39... Bg3 {[%clk
0:00:33.5]} 40. b4 {[%clk 0:00:31.1]} 40... Bd6 {[%clk 0:00:31.7]} 41. b5 {[%clk
0:00:30.9]} 41... Bg3 {[%clk 0:00:27.1]} 42. bxc6 {[%clk 0:00:30.6]} 42... bxc6
{[%clk 0:00:27.2]} 43. Nd4 {[%clk 0:00:30.7]} 43... c5 {[%clk 0:00:24.7]} 44.
Nb3 {[%clk 0:00:27.4]} 44... Bf2 {[%clk 0:00:23.7]} 45. Kd5 {[%clk 0:00:27.8]}
45... Kg5 {[%clk 0:00:23.9]} 46. Nxc5 {[%clk 0:00:28.1]} 46... Kh4 {[%clk
0:00:23.6]} 47. Ne4 {[%clk 0:00:27.3]} 47... Be3 {[%clk 0:00:20.8]} 48. c5
{[%clk 0:00:26.5]} 48... Kxh3 {[%clk 0:00:21.1]} 49. c6 {[%clk 0:00:24.8]} 49...
Bb6 {[%clk 0:00:20]} 50. Nf6 {[%clk 0:00:20.6]} 50... h4 {[%clk 0:00:19.4]} 51.
Kd6 {[%clk 0:00:18.6]} 51... Kg2 {[%clk 0:00:17]} 52. c7 {[%clk 0:00:17.8]}
52... Bxc7+ {[%clk 0:00:16.4]} 53. Kxc7 {[%clk 0:00:17.7]} 53... h3 {[%clk
0:00:17.3]} 54. Ng4 {[%clk 0:00:17.9]} 54... Kg3 {[%clk 0:00:17.3]} 55. Ne3
{[%clk 0:00:17.6]} 55... Kf3 {[%clk 0:00:14.1]} 56. Nf1 {[%clk 0:00:17.1]} 56...
Kg2 {[%clk 0:00:12.4]} 57. Ne3+ {[%clk 0:00:17.2]} 57... Kf2 {[%clk 0:00:10.3]}
58. Ng4+ {[%clk 0:00:16.8]} 58... Kg3 {[%clk 0:00:10.6]} 59. Ne3 {[%clk
0:00:16.7]} 59... Kf3 {[%clk 0:00:08.6]} 60. Nf1 {[%clk 0:00:16.8]} 60... Kf2
{[%clk 0:00:07.4]} 61. Nh2 {[%clk 0:00:15.8]} 61... Kg2 {[%clk 0:00:04.5]} 62.
Ng4 {[%clk 0:00:13.7]} 62... Kg3 {[%clk 0:00:05]} 1/2-1/2

[Event "Early-Titled-Tuesday-Blitz-March-05-2024"]
[Site "Chess.com"]
[Date "2024.03.05"]
[Round "6"]
[White "GeorgiosSouleidis"]
[Black "Flaccidmoves"]
[Result "0-1"]
[WhiteElo "2657"]
[BlackElo "2457"]
[TimeControl "180+1"]
[EndTime "9:10:11 PST"]
[Termination "Flaccidmoves won on time"]

1. e4 {[%clk 0:03:00.9]} 1... Nf6 {[%clk 0:02:58.4]} 2. Nc3 {[%clk 0:03:00.6]}
2... d5 {[%clk 0:02:57.8]} 3. exd5 {[%clk 0:03:01.5]} 3... Nxd5 {[%clk
0:02:57.7]} 4. Bc4 {[%clk 0:03:01.8]} 4... e6 {[%clk 0:02:55.5]} 5. Qf3 {[%clk
0:03:01.7]} 5... Nxc3 {[%clk 0:02:47.6]} 6. dxc3 {[%clk 0:02:58.7]} 6... Nd7
{[%clk 0:02:42.4]} 7. Qg3 {[%clk 0:02:56.7]} 7... Nf6 {[%clk 0:02:13.3]} 8. Bg5
{[%clk 0:02:43.4]} 8... Ne4 {[%clk 0:01:52.4]} 9. Bxd8 {[%clk 0:02:43.1]} 9...
Nxg3 {[%clk 0:01:51.8]} 10. hxg3 {[%clk 0:02:44]} 10... Kxd8 {[%clk 0:01:51.8]}
11. O-O-O+ {[%clk 0:02:44.9]} 11... Ke8 {[%clk 0:01:45.5]} 12. Nf3 {[%clk
0:02:45.8]} 12... Bd6 {[%clk 0:01:32.8]} 13. Ng5 {[%clk 0:02:42.2]} 13... h6
{[%clk 0:01:31.8]} 14. Ne4 {[%clk 0:02:42.1]} 14... Be7 {[%clk 0:01:30.2]} 15.
g4 {[%clk 0:02:40.5]} 15... Rg8 {[%clk 0:01:17]} 16. Kb1 {[%clk 0:02:39]} 16...
Bd7 {[%clk 0:01:16.1]} 17. Rhe1 {[%clk 0:02:35.1]} 17... Rd8 {[%clk 0:01:04.9]}
18. g3 {[%clk 0:02:34.1]} 18... Bc6 {[%clk 0:01:03.7]} 19. Bd3 {[%clk
0:02:28.1]} 19... Rd7 {[%clk 0:00:51]} 20. b4 {[%clk 0:02:25.4]} 20... a6 {[%clk
0:00:49.5]} 21. a3 {[%clk 0:02:23.2]} 21... Kd8 {[%clk 0:00:48.1]} 22. c4 {[%clk
0:02:13.4]} 22... Kc8 {[%clk 0:00:40.3]} 23. Rd2 {[%clk 0:01:41.5]} 23... Rgd8
{[%clk 0:00:39.5]} 24. Rde2 {[%clk 0:01:42]} 24... Rd4 {[%clk 0:00:33.5]} 25. f3
{[%clk 0:01:28.3]} 25... b5 {[%clk 0:00:28.2]} 26. cxb5 {[%clk 0:01:21.8]} 26...
Bxb5 {[%clk 0:00:28.2]} 27. Bxb5 {[%clk 0:01:13.5]} 27... axb5 {[%clk
0:00:29.1]} 28. c3 {[%clk 0:00:44.7]} 28... Rd3 {[%clk 0:00:28.7]} 29. Re3
{[%clk 0:00:45.2]} 29... Kb7 {[%clk 0:00:28]} 30. Kc2 {[%clk 0:00:43.1]} 30...
Rxe3 {[%clk 0:00:25.2]} 31. Rxe3 {[%clk 0:00:44]} 31... Kc6 {[%clk 0:00:21.3]}
32. Re2 {[%clk 0:00:33.2]} 32... Ra8 {[%clk 0:00:20.2]} 33. Kb3 {[%clk
0:00:33.3]} 33... Rd8 {[%clk 0:00:20.6]} 34. Nd2 {[%clk 0:00:29.4]} 34... Rd3
{[%clk 0:00:19.7]} 35. Kc2 {[%clk 0:00:27]} 35... Rd8 {[%clk 0:00:19.7]} 36. Nb3
{[%clk 0:00:26.5]} 36... Bd6 {[%clk 0:00:15.4]} 37. Rd2 {[%clk 0:00:21]} 37...
Ra8 {[%clk 0:00:14.6]} 38. Na5+ {[%clk 0:00:15.3]} 38... Kb6 {[%clk 0:00:14.1]}
39. f4 {[%clk 0:00:15.7]} 39... g5 {[%clk 0:00:13]} 40. Rf2 {[%clk 0:00:12.4]}
40... Rg8 {[%clk 0:00:10.9]} 41. f5 {[%clk 0:00:08.6]} 41... Bxg3 {[%clk
0:00:09.9]} 42. Rf3 {[%clk 0:00:08.4]} 42... Bf4 {[%clk 0:00:10.4]} 43. fxe6
{[%clk 0:00:08.1]} 43... fxe6 {[%clk 0:00:11.3]} 44. c4 {[%clk 0:00:08.6]} 44...
c6 {[%clk 0:00:10.7]} 45. c5+ {[%clk 0:00:08.3]} 45... Kc7 {[%clk 0:00:10.6]}
46. Rd3 {[%clk 0:00:09.2]} 46... e5 {[%clk 0:00:09.7]} 47. Rh3 {[%clk
0:00:08.5]} 47... Rg6 {[%clk 0:00:09.1]} 48. Kd3 {[%clk 0:00:09]} 48... Bc1
{[%clk 0:00:07.2]} 49. Ke4 {[%clk 0:00:08.9]} 49... Rf6 {[%clk 0:00:05.8]} 50.
Kxe5 {[%clk 0:00:08]} 50... Bb2+ {[%clk 0:00:06.1]} 51. Ke4 {[%clk 0:00:08.1]}
51... Rf4+ {[%clk 0:00:06.3]} 52. Kd3 {[%clk 0:00:08.3]} 52... Rxg4 {[%clk
0:00:06]} 53. Rxh6 {[%clk 0:00:08.7]} 53... Rg3+ {[%clk 0:00:06.5]} 54. Ke4
{[%clk 0:00:08.8]} 54... Bxa3 {[%clk 0:00:06.1]} 55. Rh7+ {[%clk 0:00:09.3]}
55... Kd8 {[%clk 0:00:06.1]} 56. Nxc6+ {[%clk 0:00:09.8]} 56... Ke8 {[%clk
0:00:06.5]} 57. Kf5 {[%clk 0:00:07.6]} 57... Rf3+ {[%clk 0:00:06.1]} 58. Kxg5
{[%clk 0:00:07.8]} 58... Rb3 {[%clk 0:00:05]} 59. Kf6 {[%clk 0:00:07.1]} 59...
Bxb4 {[%clk 0:00:04.7]} 60. Re7+ {[%clk 0:00:05.6]} 60... Kf8 {[%clk 0:00:04.6]}
61. Rg7 {[%clk 0:00:04.3]} 61... Rf3+ {[%clk 0:00:04.3]} 62. Ke5 {[%clk
0:00:01]} 62... Bc3+ {[%clk 0:00:04.2]} 0-1

[Event "Early-Titled-Tuesday-Blitz-March-05-2024"]
[Site "Chess.com"]
[Date "2024.03.05"]
[Round "6"]
[White "ural58"]
[Black "SlavenPastar"]
[Result "1-0"]
[WhiteElo "2525"]
[BlackElo "2617"]
[TimeControl "180+1"]
[EndTime "9:10:15 PST"]
[Termination "ural58 won by checkmate"]

1. e4 {[%clk 0:02:54.2]} 1... b6 {[%clk 0:02:59.5]} 2. d4 {[%clk 0:02:52.2]}
2... Bb7 {[%clk 0:02:59.5]} 3. Nc3 {[%clk 0:02:47.9]} 3... e6 {[%clk 0:02:58.7]}
4. a3 {[%clk 0:02:47.6]} 4... d6 {[%clk 0:02:55.8]} 5. Nf3 {[%clk 0:02:46.2]}
5... Nf6 {[%clk 0:02:53.1]} 6. Bd3 {[%clk 0:02:42.7]} 6... Nbd7 {[%clk
0:02:53.6]} 7. Qe2 {[%clk 0:02:42.4]} 7... e5 {[%clk 0:02:52.9]} 8. Bg5 {[%clk
0:02:37.3]} 8... h6 {[%clk 0:02:49.9]} 9. Bh4 {[%clk 0:02:36.8]} 9... Be7 {[%clk
0:02:49.5]} 10. O-O-O {[%clk 0:02:36]} 10... O-O {[%clk 0:02:39.5]} 11. dxe5
{[%clk 0:02:28.6]} 11... Nxe5 {[%clk 0:02:34]} 12. Nxe5 {[%clk 0:02:28.3]} 12...
dxe5 {[%clk 0:02:34.9]} 13. Ba6 {[%clk 0:02:16.1]} 13... Bxa6 {[%clk 0:02:25.7]}
14. Qxa6 {[%clk 0:02:14.2]} 14... Qc8 {[%clk 0:02:22.1]} 15. Qxc8 {[%clk
0:02:09]} 15... Raxc8 {[%clk 0:02:20.8]} 16. Bxf6 {[%clk 0:02:09.6]} 16... Bxf6
{[%clk 0:02:21.3]} 17. Rd7 {[%clk 0:02:09.1]} 17... Rfd8 {[%clk 0:02:06.9]} 18.
Rhd1 {[%clk 0:02:08.9]} 18... Rxd7 {[%clk 0:02:05.2]} 19. Rxd7 {[%clk
0:02:08.8]} 19... Bg5+ {[%clk 0:02:05.7]} 20. Kb1 {[%clk 0:02:07.8]} 20... Kf8
{[%clk 0:02:06.2]} 21. Nd5 {[%clk 0:02:03.5]} 21... c6 {[%clk 0:01:59.7]} 22.
Nc3 {[%clk 0:01:49.1]} 22... a5 {[%clk 0:01:54.4]} 23. a4 {[%clk 0:01:47]} 23...
Rd8 {[%clk 0:01:41.7]} 24. Rb7 {[%clk 0:01:14.7]} 24... Rd2 {[%clk 0:01:34.5]}
25. Rxb6 {[%clk 0:01:11.2]} 25... Rxf2 {[%clk 0:01:33.2]} 26. Rxc6 {[%clk
0:01:10.9]} 26... Rxg2 {[%clk 0:01:31.6]} 27. Nd5 {[%clk 0:01:10.3]} 27... g6
{[%clk 0:01:25.4]} 28. b4 {[%clk 0:01:04.7]} 28... axb4 {[%clk 0:01:21.4]} 29.
a5 {[%clk 0:01:04.9]} 29... Bh4 {[%clk 0:01:09.6]} 30. a6 {[%clk 0:01:03]} 30...
Bf2 {[%clk 0:01:10.1]} 31. Nb6 {[%clk 0:01:01.6]} 31... Bd4 {[%clk 0:00:57.4]}
32. c3 {[%clk 0:00:41.9]} 32... Rg1+ {[%clk 0:00:15.5]} 33. Kc2 {[%clk
0:00:40.2]} 33... b3+ {[%clk 0:00:13]} 34. Kxb3 {[%clk 0:00:30.8]} 34... Bxb6
{[%clk 0:00:11.7]} 35. c4 {[%clk 0:00:09.5]} 35... Ba7 {[%clk 0:00:06.8]} 36.
Rc7 {[%clk 0:00:08.9]} 36... Bd4 {[%clk 0:00:05.9]} 37. c5 {[%clk 0:00:08.8]}
37... Ra1 {[%clk 0:00:05.7]} 38. a7 {[%clk 0:00:08.7]} 38... Kg7 {[%clk
0:00:05]} 39. Kc4 {[%clk 0:00:08.2]} 39... g5 {[%clk 0:00:04.4]} 40. Kb5 {[%clk
0:00:08.5]} 40... g4 {[%clk 0:00:04.6]} 41. Kb6 {[%clk 0:00:08.6]} 41... h5
{[%clk 0:00:04.8]} 42. Rc8 {[%clk 0:00:08.4]} 42... Rb1+ {[%clk 0:00:03]} 43.
Kc6 {[%clk 0:00:08.2]} 43... Ra1 {[%clk 0:00:03.3]} 44. a8=Q {[%clk 0:00:08.1]}
44... Rxa8 {[%clk 0:00:04]} 45. Rxa8 {[%clk 0:00:08.7]} 45... h4 {[%clk
0:00:04.6]} 46. Ra3 {[%clk 0:00:08.8]} 46... f5 {[%clk 0:00:03.7]} 47. exf5
{[%clk 0:00:08.2]} 47... Kf6 {[%clk 0:00:03.7]} 48. Kd5 {[%clk 0:00:08.7]} 48...
Kxf5 {[%clk 0:00:04.4]} 49. c6 {[%clk 0:00:09]} 49... Bb6 {[%clk 0:00:04.7]} 50.
Rb3 {[%clk 0:00:08]} 50... Bd8 {[%clk 0:00:04.4]} 51. Rb8 {[%clk 0:00:07.9]}
51... Ba5 {[%clk 0:00:04.2]} 52. Rf8+ {[%clk 0:00:08.3]} 52... Kg5 {[%clk
0:00:03.8]} 53. Rh8 {[%clk 0:00:08.4]} 53... g3 {[%clk 0:00:03.7]} 54. hxg3
{[%clk 0:00:07.8]} 54... hxg3 {[%clk 0:00:04]} 55. Kxe5 {[%clk 0:00:07.2]} 55...
Bc3+ {[%clk 0:00:03.7]} 56. Ke4 {[%clk 0:00:07.8]} 56... Bxh8 {[%clk 0:00:02.7]}
57. c7 {[%clk 0:00:08.5]} 57... Kg4 {[%clk 0:00:02.2]} 58. c8=Q+ {[%clk
0:00:09.1]} 58... Kh4 {[%clk 0:00:01.9]} 59. Kf3 {[%clk 0:00:09.3]} 59... g2
{[%clk 0:00:02.3]} 60. Qg4# {[%clk 0:00:09.9]} 1-0

[Event "Early-Titled-Tuesday-Blitz-March-05-2024"]
[Site "Chess.com"]
[Date "2024.03.05"]
[Round "6"]
[White "BeardedNM"]
[Black "McCarthyStone"]
[Result "1-0"]
[WhiteElo "2219"]
[BlackElo "2360"]
[TimeControl "180+1"]
[EndTime "9:10:15 PST"]
[Termination "BeardedNM won by resignation"]

1. e4 {[%clk 0:02:58]} 1... d5 {[%clk 0:02:57.8]} 2. exd5 {[%clk 0:02:57.9]}
2... Qxd5 {[%clk 0:02:58.7]} 3. Nc3 {[%clk 0:02:57.7]} 3... Qd6 {[%clk
0:02:58.9]} 4. d4 {[%clk 0:02:58.3]} 4... Nf6 {[%clk 0:02:55.2]} 5. Nf3 {[%clk
0:02:58.5]} 5... Nc6 {[%clk 0:02:53.2]} 6. Nb5 {[%clk 0:02:44.7]} 6... Qd8
{[%clk 0:02:40.7]} 7. Bf4 {[%clk 0:02:39.8]} 7... Nd5 {[%clk 0:02:40.8]} 8. Bg3
{[%clk 0:02:38.7]} 8... a6 {[%clk 0:02:41.3]} 9. Na3 {[%clk 0:02:21.8]} 9... e6
{[%clk 0:02:35.8]} 10. Nc4 {[%clk 0:02:21]} 10... Be7 {[%clk 0:02:31.2]} 11. Bd3
{[%clk 0:02:15.6]} 11... O-O {[%clk 0:02:21.3]} 12. O-O {[%clk 0:02:11.9]} 12...
Bf6 {[%clk 0:02:21.7]} 13. c3 {[%clk 0:02:09]} 13... b6 {[%clk 0:01:58.4]} 14.
Qe2 {[%clk 0:02:01.9]} 14... Bb7 {[%clk 0:01:58.3]} 15. Nce5 {[%clk 0:01:54.8]}
15... Nce7 {[%clk 0:01:53.8]} 16. Ng4 {[%clk 0:01:46.1]} 16... Ng6 {[%clk
0:01:46.8]} 17. Nxf6+ {[%clk 0:01:35.4]} 17... Qxf6 {[%clk 0:01:47.3]} 18. Be4
{[%clk 0:01:27.5]} 18... Ngf4 {[%clk 0:01:08.5]} 19. Qe1 {[%clk 0:01:02.3]}
19... Rab8 {[%clk 0:00:17.6]} 20. c4 {[%clk 0:01:02.4]} 20... Nxg2 {[%clk
0:00:07.5]} 21. Kxg2 {[%clk 0:00:58]} 21... Nf4+ {[%clk 0:00:08.1]} 22. Bxf4
{[%clk 0:00:53]} 22... Qxf4 {[%clk 0:00:09]} 23. Bxb7 {[%clk 0:00:53.1]} 23...
Rxb7 {[%clk 0:00:09.9]} 24. Qe5 {[%clk 0:00:48.5]} 24... Qg4+ {[%clk 0:00:09.9]}
25. Qg3 {[%clk 0:00:48.7]} 25... Qe4 {[%clk 0:00:10.5]} 26. Rae1 {[%clk
0:00:42.2]} 26... Qc2 {[%clk 0:00:10.9]} 27. Rg1 {[%clk 0:00:35.5]} 27... Qxc4
{[%clk 0:00:08.8]} 28. Kh1 {[%clk 0:00:33.8]} 28... g6 {[%clk 0:00:09.4]} 29.
Qh4 {[%clk 0:00:13.8]} 29... Qd5 {[%clk 0:00:07.7]} 30. Qe4 {[%clk 0:00:12.8]}
30... c6 {[%clk 0:00:05.6]} 31. Qxd5 {[%clk 0:00:12.3]} 31... cxd5 {[%clk
0:00:06.5]} 32. Rc1 {[%clk 0:00:11.9]} 32... b5 {[%clk 0:00:02.9]} 33. Rc6
{[%clk 0:00:11.9]} 33... a5 {[%clk 0:00:02.9]} 34. Rgc1 {[%clk 0:00:11.8]} 34...
b4 {[%clk 0:00:03.5]} 35. Rc8 {[%clk 0:00:11.1]} 35... a4 {[%clk 0:00:02.8]} 36.
Ne5 {[%clk 0:00:10.3]} 36... Rxc8 {[%clk 0:00:02]} 37. Rxc8+ {[%clk 0:00:10]}
37... Kg7 {[%clk 0:00:02.9]} 38. Kg2 {[%clk 0:00:08.6]} 38... b3 {[%clk
0:00:03.4]} 39. a3 {[%clk 0:00:08.1]} 39... Kf6 {[%clk 0:00:01.5]} 40. Kf3
{[%clk 0:00:07.9]} 40... h5 {[%clk 0:00:01.5]} 41. Ke3 {[%clk 0:00:08.1]} 41...
g5 {[%clk 0:00:02]} 42. Kd3 {[%clk 0:00:07.5]} 42... Kf5 {[%clk 0:00:02.6]} 43.
Ke3 {[%clk 0:00:06.9]} 43... f6 {[%clk 0:00:03.1]} 44. Nd3 {[%clk 0:00:06.5]}
44... e5 {[%clk 0:00:02.8]} 45. dxe5 {[%clk 0:00:06.3]} 45... fxe5 {[%clk
0:00:03.7]} 46. Rc5 {[%clk 0:00:04.6]} 46... d4+ {[%clk 0:00:03.9]} 47. Kf3
{[%clk 0:00:03.9]} 47... g4+ {[%clk 0:00:03.7]} 48. Kg3 {[%clk 0:00:04]} 48...
Rh7 {[%clk 0:00:04.2]} 49. Rxe5+ {[%clk 0:00:03.4]} 49... Kf6 {[%clk 0:00:04.8]}
50. Rd5 {[%clk 0:00:03.1]} 50... Rc7 {[%clk 0:00:04.3]} 51. Rxd4 {[%clk
0:00:02]} 51... Rc2 {[%clk 0:00:04.6]} 52. Rxa4 {[%clk 0:00:01.5]} 52... Rd2
{[%clk 0:00:05]} 53. Rd4 {[%clk 0:00:01.7]} 53... Kf5 {[%clk 0:00:05.5]} 54.
Rd5+ {[%clk 0:00:01.5]} 54... Ke4 {[%clk 0:00:06]} 55. Rd8 {[%clk 0:00:01.2]}
55... Rxd3+ {[%clk 0:00:06.3]} 56. Rxd3 {[%clk 0:00:01.4]} 56... Kxd3 {[%clk
0:00:07.2]} 57. a4 {[%clk 0:00:01.8]} 57... Kc2 {[%clk 0:00:08.1]} 58. a5 {[%clk
0:00:02.4]} 58... Kxb2 {[%clk 0:00:09]} 59. a6 {[%clk 0:00:03.3]} 59... Kc2
{[%clk 0:00:09.9]} 60. a7 {[%clk 0:00:04.2]} 60... b2 {[%clk 0:00:10.8]} 61.
a8=Q {[%clk 0:00:05]} 61... b1=Q {[%clk 0:00:11.7]} 62. Qe4+ {[%clk 0:00:04.8]}
62... Kb2 {[%clk 0:00:11.7]} 63. Qxb1+ {[%clk 0:00:05.7]} 63... Kxb1 {[%clk
0:00:12.6]} 64. Kh4 {[%clk 0:00:06.3]} 64... Kc2 {[%clk 0:00:12.9]} 65. Kxh5
{[%clk 0:00:06.8]} 65... Kd3 {[%clk 0:00:13.8]} 66. Kxg4 {[%clk 0:00:07.4]}
66... Ke4 {[%clk 0:00:14.7]} 67. Kg5 {[%clk 0:00:07.4]} 67... Ke5 {[%clk
0:00:15.6]} 68. h4 {[%clk 0:00:07.3]} 68... Ke6 {[%clk 0:00:16.5]} 69. Kg6
{[%clk 0:00:07.7]} 69... Ke7 {[%clk 0:00:17.4]} 70. Kg7 {[%clk 0:00:07.9]} 70...
Ke6 {[%clk 0:00:17.8]} 71. h5 {[%clk 0:00:08.5]} 71... Kf5 {[%clk 0:00:18.7]}
72. h6 {[%clk 0:00:09.2]} 1-0